lending/lending_fUSD_20251114
["ID","MTS","AMOUNT","RATE_DAILY","PERIOD"]
[393943368,1763122327140,250.0,0.00041074,30]
[393943369,1763122327339,559.19188,0.00041074,30]
[393943370,1763122327417,151.0,0.00041074,30]
[393943371,1763122327468,223.0315306,0.00041074,30]
[393943372,1763122327528,500.0,0.00041074,30]
[393943373,1763122327646,223.0315306,0.00041074,30]
[393943374,1763122327858,250.0,0.00041074,30]
[393943375,1763122327945,579.88197956,0.00041074,30]
[393943376,1763122328042,151.0,0.00041074,30]
[393943377,1763122328090,231.28369723,0.00041074,30]
[393943378,1763122328129,500.0,0.00041074,30]
[393943379,1763122328206,6888.0,0.00041074,30]
[393943380,1763122328271,231.28369723,0.00041074,30]
[393943381,1763122328614,601.3376128,0.00041074,30]
[393943382,1763122328727,239.84119403,0.00041074,30]
[393943383,1763122328771,500.0,0.00041074,30]
[393943384,1763122328803,200.0,0.00041074,30]
[393943385,1763122328861,7142.856,0.00041074,30]
[393943386,1763122329047,151.0,0.00041074,30]
[393943387,1763122329290,623.58710448,0.00041074,30]
[393943388,1763122329340,248.71531821,0.00041074,30]
[393943389,1763122329417,200.0,0.00041074,30]
[393943390,1763122329457,500.0,0.00041074,30]
[393943391,1763122329706,151.0,0.00041074,30]
[393943392,1763122329905,646.65982734,0.00041074,30]
[393943393,1763122329957,257.91778498,0.00041074,30]
[393943394,1763122330236,200.0,0.00041074,30]
[393943395,1763122330275,500.0,0.00041074,30]
[393943396,1763122330653,200.0,0.00041074,30]
[393943397,1763122330736,500.0,0.00041074,30]
[393943398,1763122330832,267.46074303,0.00041074,30]
[393943399,1763122330869,500.0,0.00041074,30]
[393943400,1763122331355,500.0,0.00041074,30]
[393943401,1763122331445,277.35679052,0.00041074,30]
[393943402,1763122331479,500.0,0.00041074,30]
[393943403,1763122331918,500.0,0.00041074,30]
[393943404,1763122331959,500.0,0.00041074,30]
[393943405,1763122332054,287.61899177,0.00041074,30]
[393943406,1763122332086,500.0,0.00041074,30]
[393943407,1763122332564,500.0,0.00041074,30]
[393943408,1763122332601,500.0,0.00041074,30]
[393943409,1763122332686,298.26089446,0.00041074,30]
[393943410,1763122332717,500.0,0.00041074,30]
[393943411,1763122332886,250.0,0.00041074,30]
[393943412,1763122333183,500.0,0.00041074,30]
[393943413,1763122333332,500.0,0.00041074,30]
[393943414,1763122333376,309.29654756,0.00041074,30]
[393943415,1763122333420,152.21356696,0.00041074,30]
[393943416,1763122333529,250.0,0.00041074,30]
[393943417,1763122333784,500.0,0.00041074,30]
[393943418,1763122333950,500.0,0.00041074,30]
[393943419,1763122333982,320.74051982,0.00041074,30]
[393943420,1763122334156,250.0,0.00041074,30]
[393943421,1763122334251,151.0,0.00041074,30]
[393943422,1763122334411,500.0,0.00041074,30]
[393943423,1763122334737,500.0,0.00041074,30]
[393943424,1763122334769,250.0,0.00041074,30]
[393943425,1763122334799,332.60791905,0.00041074,30]
[393943426,1763122334873,151.0,0.00041074,30]
[393943427,1763122335037,500.0,0.00041074,30]
[393943428,1763122335311,250.0,0.00041074,30]
[393943429,1763122335355,500.0,0.00041074,30]
[393943430,1763122335386,250.0,0.00041074,30]
[393943431,1763122335478,151.0,0.00041074,30]
[393943432,1763122335509,344.91441206,0.00041074,30]
[393943433,1763122335635,500.0,0.00041074,30]
[393943434,1763122335924,250.0,0.00041074,30]
[393943435,1763122335972,500.0,0.00041074,30]
[393943436,1763122336007,250.0,0.00041074,30]
[393943437,1763122336105,357.6762453,0.00041074,30]
[393943438,1763122336265,500.0,0.00041074,30]
[393943439,1763122336567,250.0,0.00041074,30]
[393943440,1763122336603,500.0,0.00041074,30]
[393943441,1763122336737,370.91026638,0.00041074,30]
[393943442,1763122336891,500.0,0.00041074,30]
[393943443,1763122337226,250.0,0.00041074,30]
[393943444,1763122337257,500.0,0.00041074,30]
[393943445,1763122337359,384.63394623,0.00041074,30]
[393943446,1763122337512,500.0,0.00041074,30]
[393943447,1763122337847,500.0,0.00041074,30]
[393943448,1763122337878,250.0,0.00041074,30]
[393943449,1763122338018,384.63394623,0.00041074,30]
[393943450,1763122338486,500.0,0.00041074,30]
[393943451,1763122338521,250.0,0.00041074,30]
[393943452,1763122338672,200.0,0.00041074,30]
[393943453,1763122339125,500.0,0.00041074,30]
[393943454,1763122339315,250.0,0.00041074,30]
[393943455,1763122339349,320.46119078,0.00041074,30]
[393943456,1763122339820,250.0,0.00041074,30]
[393943457,1763122340205,151.0,0.00041074,30]
[393943458,1763122340465,250.0,0.00041074,30]
[393943459,1763122340871,151.0,0.00041074,30]
[393943460,1763122341067,250.0,0.00041074,30]
[393943461,1763122341232,300.0,0.00041074,30]
[393943462,1763122341517,151.0,0.00041074,30]
[393943463,1763122341714,250.0,0.00041074,30]
[393943464,1763122341910,311.1,0.00041074,30]
[393943465,1763122342146,151.0,0.00041074,30]
[393943466,1763122342336,250.0,0.00041074,30]
[393943467,1763122342583,311.1,0.00041074,30]
[393943468,1763122342758,151.0,0.00041074,30]
[393943469,1763122342959,250.0,0.00041074,30]
[393943470,1763122343394,151.0,0.00041074,30]
[393943471,1763122343591,250.0,0.00041074,30]
[393943472,1763122343899,151.0,0.00041074,30]
[393943473,1763122344041,151.0,0.00041074,30]
[393943474,1763122344207,250.0,0.00041074,30]
[393943475,1763122344239,500.0,0.00041074,30]
[393943476,1763122344560,151.0,0.00041074,30]
[393943477,1763122344678,151.0,0.00041074,30]
[393943478,1763122344836,500.0,0.00041074,30]
[393943479,1763122344873,250.0,0.00041074,30]
[393943480,1763122345251,151.0,0.00041074,30]
[393943481,1763122345297,250.0,0.00041074,30]
[393943482,1763122345348,151.0,0.00041074,30]
[393943483,1763122345532,250.0,0.00041074,30]
[393943484,1763122345684,500.0,0.00041074,30]
[393943485,1763122345857,151.0,0.00041074,30]
[393943486,1763122345896,250.0,0.00041074,30]
[393943487,1763122346148,151.0,0.00041074,30]
[393943488,1763122346184,500.0,0.00041074,30]
[393943489,1763122346223,250.0,0.00041074,30]
[393943490,1763122346328,500.0,0.00041074,30]
[393943491,1763122346487,151.0,0.00041074,30]
[393943492,1763122346542,250.0,0.00041074,30]
[393943493,1763122346628,151.0,0.00041074,30]
[393943494,1763122346761,518.5,0.00041074,30]
[393943495,1763122346808,250.0,0.00041074,30]
[393943496,1763122346987,500.0,0.00041074,30]
[393943497,1763122347122,151.0,0.00041074,30]
[393943498,1763122347155,250.0,0.00041074,30]
[393943499,1763122347243,151.0,0.00041074,30]
[393943500,1763122347610,500.0,0.00041074,30]
[393943501,1763122347807,250.0,0.00041074,30]
[393943502,1763122347860,250.0,0.00041074,30]
[393943503,1763122347922,151.0,0.00041074,30]
[393943504,1763122348393,500.0,0.00041074,30]
[393943505,1763122348450,250.0,0.00041074,30]
[393943506,1763122348562,151.0,0.00041074,30]
[393943507,1763122348840,500.0,0.00041074,30]
[393943508,1763122349083,250.0,0.00041074,30]
[393943509,1763122349182,151.0,0.00041074,30]
[393943510,1763122349467,500.0,0.00041074,30]
[393943511,1763122349802,250.0,0.00041074,30]
[393943512,1763122350104,500.0,0.00041074,30]
[393943513,1763122350257,151.0,0.00041074,30]
[393943514,1763122350438,250.0,0.00041074,30]
[393943515,1763122350719,500.0,0.00041074,30]
[393943516,1763122350899,151.0,0.00041074,30]
[393943517,1763122350986,500.0,0.00041074,30]
[393943518,1763122351341,500.0,0.00041074,30]
[393943519,1763122351537,151.0,0.00041074,30]
[393943520,1763122351631,500.0,0.00041074,30]
[393943521,1763122351967,500.0,0.00041074,30]
[393943522,1763122352139,151.0,0.00041074,30]
[393943523,1763122352264,500.0,0.00041074,30]
[393943524,1763122352311,250.0,0.00041074,30]
[393943525,1763122352759,151.0,0.00041074,30]
[393943526,1763122352884,500.0,0.00041074,30]
[393943527,1763122352943,250.0,0.00041074,30]
[393943528,1763122353525,500.0,0.00041074,30]
[393943529,1763122353638,250.0,0.00041074,30]
[393943530,1763122354146,500.0,0.00041074,30]
[393943531,1763122354223,250.0,0.00041074,30]
[393943532,1763122354794,500.0,0.00041074,30]
[393943533,1763122354875,250.0,0.00041074,30]
[393943534,1763122355450,500.0,0.00041074,30]
[393943535,1763122355506,250.0,0.00041074,30]
[393943536,1763122356137,500.0,0.00041074,30]
[393943537,1763122356336,250.0,0.00041074,30]
[393943538,1763122356772,250.0,0.00041074,30]
[393943539,1763122356804,500.0,0.00041074,30]
[393943540,1763122357392,250.0,0.00041074,30]
[393943541,1763122357438,500.0,0.00041074,30]
[393943542,1763122358083,500.0,0.00041074,30]
[393943543,1763122358708,500.0,0.00041074,30]
[393943544,1763122358798,153.27630017,0.00041074,30]
[393943545,1763122359356,500.0,0.00041074,30]
[393943546,1763122359974,500.0,0.00041074,30]
[393943547,1763122360612,500.0,0.00041074,30]
[393943548,1763122361276,500.0,0.00041074,30]
[393943549,1763122362081,500.0,0.00041074,30]
[393943550,1763122362426,151.0,0.00041074,30]
[393943551,1763122362550,500.0,0.00041074,30]
[393943552,1763122363181,500.0,0.00041074,30]
[393943553,1763122363223,151.0,0.00041074,30]
[393943555,1763122625081,250.0,0.00041075,30]
[393943556,1763122625118,490.03298824,0.00041075,30]
[393943557,1763122625310,151.4131709,0.00041075,30]
[393943558,1763122625702,250.0,0.00041075,30]
[393943559,1763122628189,348.73974612,0.00041075,30]
[393943560,1763122630811,500.0,0.00041075,30]
[393943561,1763122631440,500.0,0.00041075,30]
[393943562,1763122631531,602.03071983,0.00041075,30]
[393943563,1763122632043,500.0,0.00041075,30]
[393943564,1763122632649,500.0,0.00041075,30]
[393943565,1763122633289,500.0,0.00041075,30]
[393943566,1763122633963,500.0,0.00041075,30]
[393943567,1763122634632,500.0,0.00041075,30]
[393943568,1763122634987,162.48541517,0.00041075,30]
[393943569,1763122635262,500.0,0.00041075,30]
[393943570,1763122635989,500.0,0.00041075,30]
[393943571,1763122636603,500.0,0.00041075,30]
[393943572,1763122637227,500.0,0.00041075,30]
[393943573,1763122637360,485.34509281,0.00041075,30]
[393943574,1763122637849,500.0,0.00041075,30]
[393943575,1763122637892,2405.76762686,0.00041075,30]
[393943576,1763122638473,500.0,0.00041075,30]
[393943577,1763122639125,500.0,0.00041075,30]
[393943578,1763122639821,500.0,0.00041075,30]
[393943579,1763122640460,500.0,0.00041075,30]
[393943580,1763122641085,500.0,0.00041075,30]
[393943581,1763122641728,500.0,0.00041075,30]
[393943582,1763122642352,500.0,0.00041075,30]
[393943583,1763122642968,500.0,0.00041075,30]
[393943584,1763122646079,188.95318234,0.00041075,30]
[393943585,1763122649345,200.0,0.00041075,30]
[393943586,1763122649441,500.0,0.00041075,30]
[393943587,1763122650070,500.0,0.00041075,30]
[393943588,1763122650308,207.4,0.00041075,30]
[393943589,1763122650732,500.0,0.00041075,30]
[393943590,1763122650960,215.0738,0.00041075,30]
[393943591,1763122651377,500.0,0.00041075,30]
[393943592,1763122651859,223.0315306,0.00041075,30]
[393943593,1763122652013,500.0,0.00041075,30]
[393943594,1763122652330,231.28369723,0.00041075,30]
[393943595,1763122652661,500.0,0.00041075,30]
[393943596,1763122652957,239.84119403,0.00041075,30]
[393943597,1763122653286,500.0,0.00041075,30]
[393943598,1763122653579,248.71531821,0.00041075,30]
[393943599,1763122653893,500.0,0.00041075,30]
[393943600,1763122654193,257.91778498,0.00041075,30]
[393943601,1763122654521,500.0,0.00041075,30]
[393943602,1763122654843,267.46074303,0.00041075,30]
[393943603,1763122655153,500.0,0.00041075,30]
[393943604,1763122655679,277.35679052,0.00041075,30]
[393943605,1763122655819,500.0,0.00041075,30]
[393943606,1763122656110,287.61899177,0.00041075,30]
[393943607,1763122656487,500.0,0.00041075,30]
[393943608,1763122656755,298.26089446,0.00041075,30]
[393943609,1763122657139,500.0,0.00041075,30]
[393943610,1763122657394,309.29654756,0.00041075,30]
[393943611,1763122658007,320.74051982,0.00041075,30]
[393943612,1763122658647,332.60791905,0.00041075,30]
[393943613,1763122659310,344.91441206,0.00041075,30]
[393943614,1763122659922,357.6762453,0.00041075,30]
[393943615,1763122660732,357.6762453,0.00041075,30]
[393943616,1763122664410,167.15375465,0.00041075,30]
[393943618,1763122725216,150.0,0.0003,120]
[393943619,1763122935415,239.95527246,0.00041061,30]
[393943621,1763122968977,324.12,0.00025058,120]
[393943622,1763123173123,999.0,0.00016425,3]
[393943623,1763123184627,1631.08,0.00041063,30]
[393943624,1763123185245,163.54,0.00016366,2]
[393943625,1763123186072,205.25960205,0.00027397,120]
[393943626,1763123193536,40000.0,0.00041063,30]
[393943627,1763123205926,250.0,0.00016,2]
[393943631,1763123266290,6359.08,0.00016164,2]
[393943632,1763123274048,-498.18,0.00016653,2]
[393943633,1763123293190,250.0,0.0001614,2]
[393943634,1763123297614,250.0,0.000166,2]
[393943637,1763123317364,8503.65,0.00015,3]
[393943638,1763123317387,10000.01,0.00015,3]
[393943639,1763123317411,10000.01,0.00015,3]
[393943640,1763123317432,10000.01,0.00015,3]
[393943641,1763123317459,10000.01,0.00015,3]
[393943642,1763123317481,10000.01,0.00015,3]
[393943643,1763123317505,10000.01,0.00015,3]
[393943644,1763123317526,10000.01,0.00015,3]
[393943645,1763123317554,251000.0,0.00015,3]
[393943646,1763123317585,10443.20060052,0.00015,3]
[393943647,1763123318493,-455.76828539,0.00015,3]
[393943648,1763123321518,-286.91391834,0.00015,3]
[393943649,1763123324931,-369.44081654,0.00015,3]
[393943650,1763123327475,-163.68527077,0.00015,3]
[393943651,1763123330080,-160.26215429,0.00015,3]
[393943652,1763123333336,-230.91790741,0.00015,3]
[393943653,1763123335581,-244.83522882,0.00015,3]
[393943654,1763123336268,-406.185774,0.00014925,2]
[393943655,1763123338556,-503.24610906,0.00015,3]
[393943656,1763123342396,-194.44334265,0.00015,3]
[393943657,1763123345143,-155.39013836,0.00015,3]
[393943658,1763123348673,-4008.1402172,0.00015,3]
[393943659,1763123348979,-10000.01,0.00015,3]
[393943660,1763123349155,-10000.01,0.00015,3]
[393943661,1763123351095,-10000.01,0.00015,3]
[393943662,1763123351213,-10000.01,0.00015,3]
[393943663,1763123351336,-10000.01,0.00015,3]
[393943664,1763123351643,-10000.01,0.00015,3]
[393943665,1763123351763,-10000.01,0.00015,3]
[393943666,1763123351874,-10000.01,0.00015,3]
[393943667,1763123352236,-10000.01,0.00015,3]
[393943668,1763123352425,-581.51070907,0.00015,3]
[393943669,1763123352453,-395.82,0.000165,2]
[393943670,1763123352481,-500.0,0.00016553,2]
[393943671,1763123356408,154.0,0.000164,2]
[393943672,1763123357326,287.39676597,0.000164,2]
[393943673,1763123404647,150.0,0.00016162,2]
[393943689,1763123432266,-250.0,0.000167,2]
[393943692,1763123432277,-194.139716,0.00016703,2]
[393943695,1763123432288,-67.24219031,0.00016703,2]
[393943698,1763123432298,-279.08980969,0.00016705,2]
[393943699,1763123432435,-45.03019031,0.00016705,2]
[393943700,1763123432445,-792.88,0.00016786,2]
[393943701,1763123432455,-470.7871,0.00016786,2]
[393943702,1763123432464,-6525.73485206,0.00016786,2]
[393943703,1763123432475,-958.958,0.00016786,2]
[393943704,1763123432487,-823.1,0.00016786,2]
[393943722,1763123438091,-3828.0,0.00016786,2]
[393943723,1763123438142,-576.63438553,0.00016786,2]
[393943724,1763123438156,-19469.88996241,0.00016786,2]
[393943725,1763123438166,-2500.0,0.00016786,2]
[393943726,1763123438175,-996.14602412,0.00016799,2]
[393943727,1763123439012,-1189.06389382,0.00016799,2]
[393943728,1763123439022,-832.97355374,0.00016799,2]
[393943732,1763123439207,-299.0,0.00016872,2]
[393943734,1763123439217,-501.05836333,0.00016873,2]
[393943736,1763123439228,-346.48749089,0.00016873,2]
[393943738,1763123439236,-500.0,0.00016873,2]
[393943740,1763123439245,-500.0,0.00016873,2]
[393943742,1763123439254,-500.0,0.00016873,2]
[393943744,1763123439264,-500.96758526,0.00016873,2]
[393943746,1763123439273,-608.37698903,0.00016873,2]
[393943748,1763123439282,-500.0,0.00016873,2]
[393943751,1763123439292,-501.21542673,0.00016873,2]
[393943753,1763123439301,-500.0,0.00016873,2]
[393943756,1763123439312,-544.54070605,0.00016873,2]
[393943758,1763123439323,-500.0,0.00016873,2]
[393943760,1763123439332,-500.0,0.00016873,2]
[393943762,1763123439342,-500.0,0.00016873,2]
[393943765,1763123439352,-244.61599115,0.00016873,2]
[393943777,1763123445043,-255.38400885,0.00016873,2]
[393943778,1763123445056,-497.32454221,0.00016873,2]
[393943779,1763123445068,-77.5317489,0.00016873,2]
[393943780,1763123445084,-429.05792664,0.00016873,2]
[393943781,1763123445097,-222.77,0.00016876,2]
[393943782,1763123445112,-151.0,0.00016876,2]
[393943783,1763123445125,-151.0,0.00016876,2]
[393943784,1763123445136,-151.0,0.00016876,2]
[393943785,1763123445148,-151.0,0.00016876,2]
[393943786,1763123445160,-151.0,0.00016876,2]
[393943789,1763123445172,-151.0,0.00016876,2]
[393943791,1763123445184,-151.0,0.00016876,2]
[393943793,1763123445196,-151.0,0.00016876,2]
[393943795,1763123445207,-151.0,0.00016876,2]
[393943797,1763123445219,-151.0,0.00016876,2]
[393943799,1763123445231,-151.0,0.00016876,2]
[393943800,1763123445245,-151.0,0.00016876,2]
[393943801,1763123445257,-151.0,0.00016876,2]
[393943802,1763123445270,-151.0,0.00016876,2]
[393943804,1763123445282,-151.0,0.00016876,2]
[393943806,1763123445294,-151.0,0.00016876,2]
[393943807,1763123445306,-151.0,0.00016876,2]
[393943808,1763123445320,-151.0,0.00016876,2]
[393943809,1763123445333,-151.0,0.00016876,2]
[393943810,1763123445344,-151.0,0.00016876,2]
[393943811,1763123445360,-151.0,0.00016876,2]
[393943812,1763123445372,-151.0,0.00016876,2]
[393943813,1763123445385,-151.0,0.00016876,2]
[393943814,1763123445412,-151.0,0.00016876,2]
[393943815,1763123445428,-151.0,0.00016876,2]
[393943816,1763123445444,-151.0,0.00016876,2]
[393943817,1763123445459,-151.0,0.00016876,2]
[393943818,1763123445472,-151.0,0.00016876,2]
[393943819,1763123445486,-151.0,0.00016876,2]
[393943821,1763123445499,-151.0,0.00016876,2]
[393943823,1763123445512,-240.89319949,0.00016876,2]
[393943824,1763123445525,-151.0,0.00016876,2]
[393943825,1763123445538,-151.0,0.00016876,2]
[393943826,1763123445552,-151.0,0.00016876,2]
[393943827,1763123445565,-151.0,0.00016876,2]
[393943828,1763123445579,-500.0,0.00016886,2]
[393943829,1763123445591,-559.39688811,0.00016886,2]
[393943830,1763123445606,-500.0,0.00016886,2]
[393943831,1763123445618,-540.1261146,0.00016886,2]
[393943832,1763123445632,-420000.0,0.00016886,2]
[393943833,1763123445644,-1000.0,0.00016899,2]
[393943834,1763123445657,-250.0,0.000169,2]
[393943835,1763123445670,-2185.20991793,0.00016921,2]
[393943836,1763123445683,-832.97355368,0.00016956,2]
[393943837,1763123445696,-500.0,0.00016998,2]
[393943838,1763123445709,-511.33861294,0.00016998,2]
[393943839,1763123445721,-507.81422809,0.00016998,2]
[393943840,1763123445733,-500.0,0.00016998,2]
[393943841,1763123445745,-531.70998207,0.00016998,2]
[393943842,1763123445758,-502.66991092,0.00016998,2]
[393943843,1763123445770,-500.0,0.00016998,2]
[393943844,1763123445782,-400.0,0.00016998,2]
[393943845,1763123445794,-500.0,0.00016998,2]
[393943846,1763123445806,-435.91179761,0.00016998,2]
[393943847,1763123445820,-575.91716055,0.00016998,2]
[393943848,1763123445832,-500.0,0.00016998,2]
[393943849,1763123445844,-500.0,0.00016998,2]
[393943850,1763123445856,-500.0,0.00016998,2]
[393943851,1763123445868,-500.0,0.00016998,2]
[393943852,1763123445880,-500.0,0.00016998,2]
[393943853,1763123445892,-519.88630032,0.00016998,2]
[393943854,1763123445904,-500.0,0.00016998,2]
[393943855,1763123445916,-294.19982617,0.00016998,2]
[393943858,1763123445928,-35370.12458088,0.00017,2]
[393943861,1763123445954,-672.672003,0.00017,2]
[393943863,1763123446025,-569.12443871,0.00017,2]
[393943868,1763123446335,-1.14434411,0.00017,2]
[393943869,1763123446352,-62009.64621374,0.00017,2]
[393943870,1763123446373,-11640.6748775,0.00017,2]
[393943871,1763123446403,-1059.99999997,0.00017,2]
[393943874,1763123507232,500.0,0.00016553,2]
[393943875,1763123513061,514.58,0.000166,2]
[393943876,1763123595862,200.0,0.00016242,2]
[393943877,1763123674123,500.0,0.000166,2]
[393943878,1763123878770,2386.94,0.00016438,2]
[393943879,1763124050958,500.0,0.00016107,2]
[393943881,1763124172431,742.07,0.00016022,2]
[393943882,1763124204983,250.0,0.000166,2]
[393943883,1763124216689,658.32,0.00016008,2]
[393943884,1763124240629,174.92672462,0.00016586,2]
[393943885,1763124264955,600.0,0.000169,6]
[393943886,1763124281839,2375.3,7.972e-05,2]
[393943887,1763124281895,2375.3,8.391e-05,2]
[393943888,1763124281991,2375.3,8.811e-05,2]
[393943889,1763124282218,1790.86327538,9.231e-05,2]
[393943890,1763124282246,584.43672462,9.231e-05,2]
[393943891,1763124282448,2375.3,9.65e-05,2]
[393943892,1763124282646,2375.3,0.0001007,2]
[393943893,1763124282869,2375.3,0.00010489,2]
[393943894,1763124283082,2289.67327538,0.00010909,2]
[393943895,1763124283104,85.62672462,0.00010909,2]
[393943896,1763124283312,2375.3,0.00011328,2]
[393943897,1763124283746,2375.3,0.00011748,2]
[393943898,1763124283970,2375.3,0.00012168,2]
[393943899,1763124284180,2375.3,0.00012587,2]
[393943900,1763124284386,413.18327538,0.00013007,2]
[393943901,1763124284409,1962.11672462,0.00013007,2]
[393943902,1763124284827,2375.3,0.00013426,2]
[393943903,1763124285041,2375.3,0.00013846,2]
[393943904,1763124285236,2375.3,0.00014265,2]
[393943905,1763124285449,911.99327538,0.00014685,2]
[393943906,1763124285472,1463.30672462,0.00014685,2]
[393943907,1763124285678,2375.3,0.00015104,2]
[393943908,1763124285870,2375.3,0.00015524,2]
[393943909,1763124286084,2375.3,0.00015944,2]
[393943910,1763124323771,10000.01,0.00012168,2]
[393943911,1763124350761,150.0,0.000162,2]
[393943912,1763124350828,150.0,0.000164,2]
[393943913,1763124350900,150.0,0.000166,2]
[393943914,1763124420098,900.0,0.000169,6]
[393943915,1763124549546,3000.0,0.00041063,120]
[393943916,1763124560676,502.35967305,0.00041063,120]
[393943918,1763124577256,1500.0,0.00015888,2]
[393943919,1763124610128,150.0,0.00041063,30]
[393943920,1763124616599,1435.93,0.00015888,2]
[393943931,1763124632273,-250.0,0.0001663,3]
[393943932,1763124632283,-1200.0,0.00016685,2]
[393943933,1763124632293,-262.0,0.00016685,2]
[393943934,1763124632302,-300.0,0.00016685,2]
[393943936,1763124632310,-565.0,0.00016685,2]
[393943937,1763124632321,-602.1318191,0.00016685,2]
[393943938,1763124632330,-6401.12787473,0.00016686,2]
[393943939,1763124632346,-592.24297489,0.00016686,2]
[393943940,1763124632356,-198.89759264,0.00016686,2]
[393943941,1763124632366,-1132.97810347,0.00016686,2]
[393943942,1763124632377,-956.956,0.00016686,2]
[393943943,1763124632389,-778.24,0.00016686,2]
[393943944,1763124632401,-2324.48679901,0.00016686,2]
[393943945,1763124632411,-602.13181911,0.00016686,2]
[393943946,1763124632421,-352.3136,0.00016686,2]
[393943947,1763124632430,-792.88,0.00016686,2]
[393943948,1763124632445,-5835.7861,0.00016686,2]
[393943949,1763124632455,-1000.0,0.00016686,2]
[393943950,1763124632466,-19917.5518,0.00016686,2]
[393943951,1763124632476,-2500.0,0.00016686,2]
[393943952,1763124632486,-250.0,0.000167,2]
[393943953,1763124632495,-500.0,0.00016773,2]
[393943954,1763124632504,-500.0,0.00016773,2]
[393943955,1763124632514,-500.0,0.00016773,2]
[393943956,1763124632524,-500.0,0.00016773,2]
[393943957,1763124632534,-500.0,0.00016773,2]
[393943958,1763124632543,-502.37215018,0.00016773,2]
[393943959,1763124632553,-500.0,0.00016773,2]
[393943960,1763124632563,-500.0,0.00016773,2]
[393943961,1763124632573,-500.0,0.00016773,2]
[393943962,1763124632583,-151.0,0.00016776,2]
[393943963,1763124632592,-151.0,0.00016776,2]
[393943964,1763124632602,-151.0,0.00016776,2]
[393943965,1763124632612,-151.0,0.00016776,2]
[393943966,1763124632622,-151.0,0.00016776,2]
[393943967,1763124632631,-151.0,0.00016776,2]
[393943968,1763124632641,-151.0,0.00016776,2]
[393943969,1763124632650,-151.0,0.00016776,2]
[393943970,1763124632659,-151.0,0.00016776,2]
[393943971,1763124632670,-151.0,0.00016776,2]
[393943972,1763124632679,-151.0,0.00016776,2]
[393943974,1763124632692,-151.0,0.00016776,2]
[393943975,1763124632702,-151.0,0.00016776,2]
[393943976,1763124632715,-151.0,0.00016776,2]
[393943977,1763124632725,-151.0,0.00016776,2]
[393943978,1763124632735,-151.0,0.00016776,2]
[393943979,1763124632744,-151.0,0.00016776,2]
[393943980,1763124632755,-151.0,0.00016776,2]
[393943982,1763124632765,-151.0,0.00016776,2]